Cogmind - Beta 15 @@@ ROGUE MODE // 2025.10.06 @ 15:02:08 Player: microsand Result: Destroyed by G-34 Mercenary with Small Laser Performance ------------- Evolutions (1) 500 Regions Visited (2) 400 Robots Destroyed (73) 365 Value Destroyed (1579) 1579 Prototype IDs (2) 40 Alien Tech Used (0) 0 Bonus (0) 0 TOTAL SCORE: 2884 Bonus ------- None Cogmind --------- Core Integrity 0/400 Matter 410/500 Energy 185/250 System Corruption 0% Temperature Warning (312) Movement Core (300) Ox5 Location -9/Materials Parts ------- > --- POWER (1) -------- Ion Engine > --- PROPULSION (2) --- (None) > --- UTILITY (3) ------ Small Storage Unit High-capacity Matter Pod Signal Interpreter > --- WEAPON (3) ------- Autogun > --- INVENTORY (8) ---- Light Ion Engine Aluminum Leg Grenade Launcher Mining Laser Peak State ------------ > --- POWER ------------ Light Ion Engine > --- PROPULSION ------- Aluminum Leg Aluminum Leg > --- UTILITY ---------- Small Storage Unit High-capacity Matter Pod Signal Interpreter > --- WEAPON ----------- Improved EM Shotgun Improved Medium Laser Heavy Assault Rifle > --- INVENTORY -------- Light Ion Engine Aluminum Leg EM Pulse Gun Small Laser Spread Laser Grenade Launcher Mining Laser [Rating: 14] Favorites ----------- Power Light Ion Engine Engine Light Ion Engine Propulsion Aluminum Leg Leg Aluminum Leg Wheel Compact Wheel Utility Small Storage Unit Device Seismic Detector Storage Small Storage Unit Processor Signal Interpreter Weapon Light Cannon Energy Gun Improved EM Shotgun Energy Cannon Particle Cannon Ballistic Gun Heavy Assault Rifle Ballistic Cannon Light Cannon Launcher Grenade Launcher Build | -11 -10 -9 ------- Run | Yrd Mat Mat Slots Evolved 2 | . . 2 Power . | . . . Propulsion . | . . . Utility 1 | . . 1 Weapon 1 | . . 1 Parts Attached 34 | 7 10 17 Power 6 | 1 2 3 Engine 6 | 1 2 3 Core . | . . . Reactor . | . . . Propulsion 8 | 2 4 2 Treads . | . . . Leg 6 | . 4 2 Wheel 2 | 2 . . Hover . | . . . Flight . | . . . Utility 4 | 2 1 1 Device 1 | 1 . . Storage 2 | 1 . 1 Processor 1 | . 1 . Hackware . | . . . Protection . | . . . Artifact . | . . . Weapon 16 | 2 3 11 Energy Gun 7 | 1 1 5 Energy Cannon 1 | . . 1 Ballistic Gun 3 | 1 . 2 Ballistic Cannon 4 | . 2 2 Launcher 1 | . . 1 Special Weapon . | . . . Impact Weapon . | . . . Slashing Weapon . | . . . Piercing Weapon . | . . . Special Melee Weapon . | . . . Unidentified Prototypes 2 | . . 2 Parts Lost 18 | . 5 13 Power 3 | . 2 1 Propulsion 4 | . 1 3 Utility 1 | . 1 . Weapon 10 | . 1 9 Highest Loss Streak 5 | . 2 5 To Critical Strikes . | . . . Average Backups 6 | 1 6 6 Power . | . . . Propulsion 2 | 1 3 2 Utility . | . . . Weapon 3 | . 2 3 Tool/Special . | . . . Unused Backups 4 | . 1 3 Power 1 | . . 1 Propulsion 1 | . 1 . Utility . | . . . Weapon 2 | . . 2 Tool/Special . | . . . Average Slot Usage (%) 91 | . 87 95 Engine 10 | . 10 11 Leg 14 | . 9 19 Wheel 4 | . 11 . Storage 18 | . 14 22 Processor 11 | . 12 11 Energy Gun 7 | . 1 12 Ballistic Gun 3 | . 1 4 Ballistic Cannon 18 | . 25 13 Peak Build Rating 14 | 7 7 14 Average Rating 8 | 4 6 10 On Entrance 4 | . 7 7 Naked Turns . | . . . Heaviest Build 23 | 13 16 23 Greatest Support 26 | 26 26 20 Greatest Overweight (x) 2 | . . 2 Average Overweight (x) . | . . . Largest Inventory Capacity 8 | 8 8 8 Average Capacity 7 | 6 8 8 Most Carried 8 | 4 8 8 Average Carried 6 | 2 6 6 Final Capacity 8 | 8 8 8 Final Carried 8 | 2 8 4 Class Distribution -------------------- 53% | Mutant 44% | Gunner Dominant Class ---------------- Mutant | -10/Materials Gunner | -9/Materials Resources | -11 -10 -9 ----------- Run | Yrd Mat Mat Matter Collected 1509 | 308 621 580 Remotely . | . . . Salvage Created 2246 | 111 917 1218 Parts 133 | 9 53 71 Haulers Intercepted 1 | . . 1 Recyclers Shooed 6 | 2 2 2 Parts Field Recycled . | . . . Retrieved Matter . | . . . Parts Self-Destructed . | . . . Prevented . | . . . Kills | -11 -10 -9 ------- Run | Yrd Mat Mat Combat Hostiles Destroyed 50 | . 22 28 Guns 30 | . 9 21 Cannons 20 | . 13 7 Classes Destroyed 10 | 3 4 3 Worker 5 | 1 1 3 Builder 1 | . 1 . Tunneler 2 | 2 . . Hauler 1 | . . 1 Recycler 7 | 1 4 2 Watcher 7 | . 3 4 Swarmer 19 | . 9 10 Grunt 24 | . 13 11 Duelist 1 | . . 1 Sentry 6 | . . 6 Best Kill Streak 8 | 2 8 6 Combat Bots Only 7 | . 7 5 Max Kills in Single Turn 2 | 1 2 2 Gunslinging 1 | . 1 . Exploded . | . . . Melee . | . . . Uniques/NPCs Destroyed . | . . . Combat | -11 -10 -9 -------- Run | Yrd Mat Mat Hostile Shots Fired 269 | . 91 178 Missed 63 | . 26 37 Hits 206 | . 65 141 Melee 4 | . . 4 Projectile 202 | . 65 137 Critical Strikes 3 | . . 3 Damage Taken 2431 | . 671 1760 Core 510 | . 105 405 Absorbed by Shields . | . . . Core Remaining (%) 79 | 100 58 . Volleys Fired 173 | 18 65 90 Largest 3 | 2 2 3 Hottest 186 | 70 70 186 Shots Fired 370 | 36 126 208 Gun 203 | 36 46 121 Cannon 165 | . 80 85 Launcher 2 | . . 2 Special . | . . . Kinetic 220 | 18 101 101 Thermal 112 | 18 25 69 Explosive 2 | . . 2 Electromagnetic 36 | . . 36 Robot Hit Streak 11 | 5 11 9 Robot Miss Streak 9 | 9 4 6 Penetration Max . | . . . Secondary Targets 5 | . 4 1 Max Gunslinging Chain 1 | . 1 1 Shots Hit Robots 204 | 18 68 118 Core Hits 103 | 5 36 62 Critical Kills . | . . . Critical Parts Destroyed . | . . . Critical Strikes 10 | . 5 5 Burn 3 | . 3 . Blast 7 | . 2 5 Melee Attacks . | . . . Impact . | . . . Slashing . | . . . Piercing . | . . . Sneak Attacks . | . . . Combat Hostiles . | . . . Follow-up Attacks . | . . . Damage Inflicted 3494 | 245 1168 2081 Guns 1806 | 245 342 1219 Cannons 1612 | . 826 786 Explosions 63 | . . 63 Melee . | . . . Ramming 13 | . . 13 Kinetic 2087 | 146 992 949 Thermal 1010 | 99 176 735 Explosive . | . . . Electromagnetic 384 | . . 384 Impact . | . . . Slashing . | . . . Piercing . | . . . Highest Corruption . | . . . Average Corruption . | . . . Corruption Purged . | . . . Corruption Blocked . | . . . Overload Shots . | . . . Overflow Damage 7 | . 7 . Projectiles 7 | . 7 . Explosions . | . . . Melee . | . . . Knockbacks 21 | . 13 8 Impact 1 | . . 1 Kinetic 20 | . 13 7 Secondary . | . . . Self-Inflicted Damage . | . . . Shots . | . . . Rammed . | . . . Targets Rammed 4 | . . 4 Kicked 4 | . . 4 Crushed . | . . . Highest Temperature 654 | 45 126 654 Average Temperature 86 | 15 30 121 Received Heat Transfer 888 | . 249 639 Effects 10 | . . 10 Shutdowns 2 | . . 2 Interference 1 | . . 1 Matter Decay 1 | . . 1 Short Circuit 3 | . . 3 Damage (minor) 1 | . . 1 Damage (major) 1 | . . 1 Damage (core) 1 | . . 1 Siege Activations . | . . . Martial Activations . | . . . Shielding Activations . | . . . Robots Disrupted . | . . . Combat Hostiles . | . . . Robots Corrupted . | . . . Combat Hostiles . | . . . Parts Fried . | . . . Impact Corruptions . | . . . Robots Melted . | . . . Combat Hostiles . | . . . Parts Melted 1 | . . 1 Heat Transferred 2423 | 296 740 1387 Parts Sabotaged . | . . . Parts Stolen . | . . . Parts Stripped . | . . . Power Chain Reactions 1 | . . 1 Alert | -11 -10 -9 ------- Run | Yrd Mat Mat Maximum Alert Level 1 | . . 1 Low Security (%) 87 | 100 100 77 Level 1 12 | . . 22 Level 2 . | . . . Level 3 . | . . . Level 4 . | . . . Level 5 . | . . . High Security . | . . . Max Security . | . . . Peak Influence 399 | 10 146 399 Initial 34 | . 6 34 Average 79 | 1 77 88 Influence Increases 1577 | 20 650 907 Destroy 0b10 Robot/C 1000 | . 440 560 Destroy 0b10 Robot/NC 115 | 20 45 50 Destroy Leader 246 | . 106 140 Successful Hack 46 | . 28 18 Disable Machine 75 | . 30 45 Destroy Structure 20 | . 1 19 Lose Combat Pursuer 75 | . . 75 Influence Decreases 1270 | 10 578 682 Entered New Map 52 | . 4 48 Time Decay 908 | 10 524 374 Lost Part 160 | . 50 110 Purge Threat 150 | . . 150 Squads Dispatched 9 | . 6 3 Investigation 6 | . 4 2 Extermination . | . . . Reinforcement 3 | . 2 1 Assault . | . . . Garrison . | . . . Intercept . | . . . Searches Triggered . | . . . Construction Impeded . | . . . Haulers Reinforced . | . . . Active Scanning Responses . | . . . Cargo Convoy Interrupts . | . . . Stealth | -11 -10 -9 --------- Run | Yrd Mat Mat Distress Signals 7 | . 6 1 Communications Jammed . | . . . Distress Signals . | . . . Times Spotted 71 | . 29 42 Peak Tracking Total 7 | . 7 5 Tactical Retreats 4 | . . 4 Traps | -11 -10 -9 ------- Run | Yrd Mat Mat Traps Triggered 2 | . 2 . Indirectly . | . . . Trap Hack Attempts . | . . . Triggered . | . . . Disarmed . | . . . Reprogrammed . | . . . Reused . | . . . Traps Extracted . | . . . Installed . | . . . Triggered . | . . . Machines | -11 -10 -9 ---------- Run | Yrd Mat Mat Machines Disabled 5 | . 2 3 Max in Single Turn 1 | . 1 1 Machines Repaired . | . . . Machines Dismantled . | . . . Machines Sabotaged . | . . . Overloaded Fab Kills . | . . . Hacking | -11 -10 -9 --------- Run | Yrd Mat Mat Machines Accessed 21 | . 8 13 Terminals 18 | . 6 12 Fabricators . | . . . Repair Stations 2 | . 1 1 Recycling Units 1 | . 1 . Scanalyzers . | . . . Garrison Access . | . . . Total Hacks 48 | . 24 24 Successful 30 | . 13 17 Failed 18 | . 11 7 Catastrophic 3 | . 2 1 Database Lockouts . | . . . Manual 33 | . 13 20 Terminals 39 | . 18 21 Fabricators . | . . . Repair Stations 7 | . 4 3 Recycling Units 2 | . 2 . Scanalyzers . | . . . Garrison Access . | . . . Terminal Hacks 9 | . 5 4 Record 1 | . . 1 Robot Analysis 1 | . 1 . Terminal Index 2 | . 1 1 Alert Level 2 | . 1 1 Unreport Threat 1 | . . 1 Recall Investigation 1 | . 1 . Zone Layout 1 | . 1 . Fabricator Hacks . | . . . Repair Station Hacks 2 | . 1 1 Scan Component 2 | . 1 1 Recycling Unit Hacks 1 | . 1 . Report Inventory 1 | . 1 . Scanalyzer . | . . . Garrison Access Hacks . | . . . Unauthorized Hacks 17 | . 5 12 Terminals 17 | . 5 12 Botnet 17 | . 5 12 Fabricators . | . . . Repair Stations . | . . . Recycling Units . | . . . Scanalyzers . | . . . Garrison Access . | . . . Data Cores Recovered . | . . . Used . | . . . Hacking Detections 14 | . 7 7 Full Trace Events 9 | . 4 5 Feedback Events . | . . . Feedback Blocked . | . . . Robot Schematics Acquired . | . . . Robots Built . | . . . Authchips . | . . . Time . | . . . Total Robot Build Rating . | . . . Part Schematics Acquired . | . . . Parts Built . | . . . Authchips . | . . . Time . | . . . Total Part Build Rating . | . . . Parts Repaired . | . . . Time . | . . . Parts Recycled . | . . . Recycled Matter . | . . . Retrieved Matter . | . . . Retrieved Components . | . . . Parts Scanalyzed . | . . . Part Schematics Acquired . | . . . Parts Damaged . | . . . Bothacking | -11 -10 -9 ------------ Run | Yrd Mat Mat Used RIF Installer . | . . . Robots Hacked . | . . . Non-combat . | . . . Combat . | . . . Robot Hacks Applied . | . . . Relay Couplers Released . | . . . Fabnet Peak Effective % . | . . . Robots Rewired . | . . . Allies Hacked . | . . . Hacks Repelled . | . . . Allies | -11 -10 -9 -------- Run | Yrd Mat Mat Total Allies . | . . . Largest Group . | . . . Highest-Rated Group . | . . . Highest-Rated Ally . | . . . Total Orders . | . . . Ally Attacks . | . . . Total Damage . | . . . Kills . | . . . Allies Corrupted . | . . . Allies Melted . | . . . Intel | -11 -10 -9 ------- Run | Yrd Mat Mat Active Infowar (turns) 91 | 44 47 . Seismic 91 | 44 47 . Robot Analysis Total 1 | . 1 . Derelict Logs Recovered . | . . . Drone Launches . | . . . Drone Recoveries . | . . . Exploration | -11 -10 -9 ------------- Run | Yrd Mat Mat Turns Passed 3661 | 179 1511 1971 Spaces Moved 2032 | 120 1154 758 Core 13 | 13 . . Treads . | . . . Legs 1110 | . 352 758 Wheels 909 | 107 802 . Hover . | . . . Flight . | . . . Fastest Speed 50 | 50 90 120 Average Speed 133 | 85 105 185 Slowest Speed 260 | 90 120 260 Overloaded Moves . | . . . Propulsion Burnouts . | . . . Robots Hopped . | . . . Potential Cave-ins . | . . . Cave-ins Triggered . | . . . Exploration Rate (%) 55 | 6 96 63 Regions Visited 2 Branch Regions . Pre-discovered Areas . | . . . Known Exits Taken 1 | . 1 . Unknown Exits Taken 1 | 1 . . Scrap Searched . | . . . Spaces Dug . | . . . Terrain Destroyed 13 | . . 13 Melee . | . . . Projectile . | . . . AOE 13 | . . 13 Terrain Rammed . | . . . Walls Destroyed . | . . . Machines Disabled . | . . . Actions | -11 -10 -9 --------- Run | Yrd Mat Mat Total 2640 | 160 1327 1153 Wait 344 | 7 84 253 Move 2030 | 119 1153 758 Hop . | . . . Pick Up 39 | 9 13 17 Fast Attach . | . . . Attach 27 | 7 5 15 Detach . | . . . Swap 11 | . 5 6 Drop 12 | . 2 10 Fire 173 | 18 65 90 Melee . | . . . Ram . | . . . Kick 4 | . . 4 Crush . | . . . Escape Stasis . | . . . Rewire . | . . . Trap . | . . . Miscellaneous . | . . . Route ------- -11/Scrapyard -10/Materials (discovered 5 exits: *Mat x3 / *Min / *Sub) -9/Materials (discovered 3 exits: [*Mat] / *Min x2) History --------- Turn | Location | Event 42 | -11/Scrapyard | Discovered new exit (range 16) 180 | -11/Scrapyard | Entered Materials 264 | -10/Materials | Destroyed 7 combat bots 354 | -10/Materials | Build established: Mutant 463 | -10/Materials | Discovered new exit (range 8) 534 | -10/Materials | Identified exit to Mines 659 | -10/Materials | Discovered new exit (range 14) 821 | -10/Materials | Discovered new exit (range 16) 1080 | -10/Materials | Derelicts attacked the area 1090 | -10/Materials | Discovered new exit (range 16) 1118 | -10/Materials | Identified exit to Materials 1478 | -10/Materials | Discovered new exit (range 5) 1484 | -10/Materials | Identified exit to Subcaves 1691 | -10/Materials | Entered another Materials area 1691 | -9/Materials | Evolved 2 slots: Utility x1, Weapon x1 2001 | -9/Materials | Build established: Gunner 2089 | -9/Materials | Discovered new exit (range 16) 2181 | -9/Materials | Lost 3 parts (3w) 2204 | -9/Materials | Identified exit to Mines 2557 | -9/Materials | Discovered new exit (range 11) 3389 | -9/Materials | Discovered exit to Mines (range 15) 3396 | -9/Materials | Core integrity fell below 50% 3636 | -9/Materials | Core integrity fell below 20% 3662 | -9/Materials | Destroyed by G-34 Mercenary with Small Laser Last Messages --------------- 03625_ G-34 Mercenary knocked back. 03626_ K-01 Serf collects debris. 03627_ Aluminum Leg destroyed. 03627_ K-01 Serf destroyed. 03629_ G-34 Mercenary knocked back. 03630_ Ion Engine destroyed. 03633_ R-06 Scavenger collects Flight Unit. 03636_ Lgt. Cannon destroyed. 03641_ R-06 Scavenger destroyed. 03643_ K-01 Serf collects debris. 03647_ G-34 Mercenary destroyed. 03648_ K-01 Serf collects debris. 03652_ G-47 Trooper destroyed. 03654_ K-01 Serf collects debris. 03658_ Particle Cannon destroyed. 03658_ K-01 Serf collects debris. 03660_ G-34 Mercenary destroyed. 03661_ Overheating: Sml. Storage Unit damaged (-20). 03661_ K-01 Serf collects debris. Map ----- +----------------------------------------------------+ | %+* !#????# # ## #????? | | %#*""""" #????# + #????? | | ## """"" #????# [] # ## #????? | | ## """"" #????# ] # ! ## #????? | | ## ??????# # ###### #????? | | #########??????# # #????# #????? | | #?########?????# # #?#### #????? | | #?#= #?????########### #?# #????? | | #?# "" #???????????????# #?# ####????? | | #?# T" #???????????????# #?#+########? | | #?# "" #???????????????# #?# # | | #?# ###+############# #?# ! ! # | | #?# # %%### # | | #######+## # """"""" # | | [[[ + """"""" # | | ##+####### T # """""""?? | | ????# # """"""??? | | """ ###### # """""???? | | """ ##!! !** #######???? | | """ ##!! !** #?????????? | | ##[[ !** #?????????? | | ##[[ ##T####T#=k% ###???????? | | ########** #########g!%* #???????? | | ???????#** ## # %= % #???????? | | ???????##### ## "T" #!= #???????? | | ???????????# ?# !#%!=@ #???????? | | ???????????# ?# [[#%k= #???????? | | ???????????# ?# *= +%##### ###???????? | | ???????????# ?# [ #%#???? #?????????? | | ???????????# ?########%#???? #?????????? | | ???????????? ???????? %#???? #?????????? | | ???????????? ????????# #???? #?????????? | | ?????????????????????# #?????#?????????? | | ????????????????????? ???????????????? | | ????????????????????? ???????????????? | | ????????????????????? ???????????????? | | ????????????????????? ???????????????? | | ????????????????????? ???????????????? | | ????????????????????? ???????????????? | | ????????????????????? ???????????????? | | ????????????????????? ???????????????? | | ????????????????????? ???????????????? | | ????????????????????? ???????????????? | | ???????????????????????????????????????? | | ???????????????????????????????????????? | | ???????????????????????????????????????? | | ???????????????????????????????????????? | | ???????????????????????????????????????? | | ???????????????????????????????????????? | | ???????????????????????????????????????? | +----------------------------------------------------+ Best States ------------- Heat Dissipation 28 Energy Generation 10 Energy Capacity 250 Matter Stores 500 Matter Capacity 500 Sight Range 16 Terrain Scan Density 10 Evasion (%) 55 Item Schematics ----------------- None Robot Schematics ------------------ None Fabricated ------------ Nothing Repaired ---------- Nothing Alien Tech Used ----------------- None Achievements -------------- Everything Is Under Control Hey, That's Mine! Quantum Hacking Challenges ------------ None Game ------ Seed SwordSupersonicThruster Manual? 0 Play Time 00:30:46 Cumulative 8.3 hours Start 2025.10.06 @ 14:37:49 End 2025.10.06 @ 15:02:08 Sessions 1 Manual Loads 0 Difficulty Rogue Special Mode None Game No. 27 Rogue 27 Adventurer 0 Explorer 0 Win Type - Total 0 Types 0/0/0/0/0/0/0/0/0/0 Lore% 13 Gallery% 15 Achievement% 15 Wizard Run 0 Options --------- Layout 1 ASCII 0 Keyboard 0 Movement Numpad Keybinds 0 Fullscreen 1 Font 24/Smallcaps Map View 50x35 Zoom Use 0% Tactical HUD 1 Map Filters NONE Filters NONE Steam X RUN: 8f545ffb-f94a-419f-8c67-c484933ae887